[Event "Early-Titled-Tuesday-Blitz-April-02-2024"]
[Site "Chess.com"]
[Date "2024.04.02"]
[Round "9"]
[White "mishanick"]
[Black "Aygehovit1992"]
[Result "0-1"]
[WhiteElo "3019"]
[BlackElo "2865"]
[TimeControl "180+1"]
[EndTime "9:46:43 PDT"]
[Termination "Aygehovit1992 won by resignation"]

1. d4 {[%clk 0:03:00.9]} 1... Nf6 {[%clk 0:02:59.7]} 2. c4 {[%clk 0:03:00.9]}
2... e6 {[%clk 0:02:59.9]} 3. Nc3 {[%clk 0:03:01.4]} 3... Bb4 {[%clk 0:03:00.2]}
4. e3 {[%clk 0:03:02.1]} 4... b6 {[%clk 0:03:00.5]} 5. Ne2 {[%clk 0:02:58.4]}
5... Ba6 {[%clk 0:02:59.5]} 6. a3 {[%clk 0:02:58.2]} 6... Be7 {[%clk 0:02:58]}
7. Ng3 {[%clk 0:02:56.4]} 7... d5 {[%clk 0:02:47]} 8. cxd5 {[%clk 0:02:56.6]}
8... Bxf1 {[%clk 0:02:46.9]} 9. Kxf1 {[%clk 0:02:57]} 9... Nxd5 {[%clk
0:02:42.2]} 10. Qf3 {[%clk 0:02:48.7]} 10... O-O {[%clk 0:02:35.2]} 11. Bd2
{[%clk 0:02:48.6]} 11... c5 {[%clk 0:02:32.5]} 12. Nxd5 {[%clk 0:02:47.8]} 12...
exd5 {[%clk 0:02:30.9]} 13. Bc3 {[%clk 0:02:45.7]} 13... c4 {[%clk 0:02:19.7]}
14. e4 {[%clk 0:02:38.6]} 14... dxe4 {[%clk 0:02:09.3]} 15. Nxe4 {[%clk
0:02:39.5]} 15... Nd7 {[%clk 0:01:58.9]} 16. d5 {[%clk 0:02:38.3]} 16... Re8
{[%clk 0:01:51.4]} 17. Rd1 {[%clk 0:02:32.1]} 17... Bf8 {[%clk 0:01:29.7]} 18.
h4 {[%clk 0:02:31.3]} 18... Ne5 {[%clk 0:01:22.5]} 19. Qf5 {[%clk 0:02:22.6]}
19... Qc8 {[%clk 0:00:59.8]} 20. Qf4 {[%clk 0:01:58.1]} 20... Qg4 {[%clk
0:00:49]} 21. Qxg4 {[%clk 0:01:51.8]} 21... Nxg4 {[%clk 0:00:49.9]} 22. Rd4
{[%clk 0:01:26]} 22... b5 {[%clk 0:00:42.4]} 23. f3 {[%clk 0:01:14.2]} 23... f5
{[%clk 0:00:26.8]} 24. fxg4 {[%clk 0:01:08]} 24... fxe4 {[%clk 0:00:26.9]} 25.
Ke2 {[%clk 0:01:06.1]} 25... Bc5 {[%clk 0:00:27]} 26. Rdd1 {[%clk 0:01:06.4]}
26... Rad8 {[%clk 0:00:25]} 27. Rhf1 {[%clk 0:01:05.6]} 27... e3 {[%clk
0:00:25.5]} 28. Rf4 {[%clk 0:00:59.5]} 28... Re7 {[%clk 0:00:25.6]} 29. Bb4
{[%clk 0:00:51]} 29... Bxb4 {[%clk 0:00:20.5]} 30. axb4 {[%clk 0:00:51.9]} 30...
Re5 {[%clk 0:00:19.2]} 31. d6 {[%clk 0:00:48.5]} 31... Rd7 {[%clk 0:00:15.7]}
32. Rf5 {[%clk 0:00:45]} 32... Re4 {[%clk 0:00:08.9]} 33. Rxb5 {[%clk
0:00:43.3]} 33... Rxg4 {[%clk 0:00:09]} 34. Rc5 {[%clk 0:00:32.1]} 34... Rxg2+
{[%clk 0:00:07.3]} 35. Kxe3 {[%clk 0:00:32.5]} 35... Kf7 {[%clk 0:00:07.3]} 36.
Re5 {[%clk 0:00:27.1]} 36... Rxb2 {[%clk 0:00:06.5]} 37. h5 {[%clk 0:00:21.5]}
37... Kf6 {[%clk 0:00:04.7]} 38. Re4 {[%clk 0:00:16.3]} 38... Rb3+ {[%clk
0:00:04.9]} 39. Ke2 {[%clk 0:00:14.2]} 39... Rb2+ {[%clk 0:00:05.4]} 40. Ke3
{[%clk 0:00:03.1]} 40... Rb3+ {[%clk 0:00:05.9]} 41. Ke2 {[%clk 0:00:03.8]}
41... Rxb4 {[%clk 0:00:06.6]} 42. Rf1+ {[%clk 0:00:03.5]} 42... Kg5 {[%clk
0:00:07]} 43. Re5+ {[%clk 0:00:04]} 43... Kh6 {[%clk 0:00:07.2]} 44. Rd1 {[%clk
0:00:02.9]} 44... Rb2+ {[%clk 0:00:07.1]} 45. Ke1 {[%clk 0:00:02.6]} 45... c3
{[%clk 0:00:06]} 46. Rc5 {[%clk 0:00:02.4]} 46... Rd2 {[%clk 0:00:05.5]} 47. Rc6
{[%clk 0:00:02]} 47... Rxd1+ {[%clk 0:00:05.3]} 48. Kxd1 {[%clk 0:00:02.9]}
48... Kxh5 {[%clk 0:00:05.4]} 49. Kc2 {[%clk 0:00:03.7]} 49... g5 {[%clk
0:00:05.7]} 50. Kxc3 {[%clk 0:00:04.5]} 50... g4 {[%clk 0:00:06.3]} 51. Kd4
{[%clk 0:00:05.3]} 51... g3 {[%clk 0:00:06.7]} 52. Ke3 {[%clk 0:00:03.2]} 52...
Kg4 {[%clk 0:00:06.8]} 53. Rc4+ {[%clk 0:00:02.7]} 53... Kh3 {[%clk 0:00:07]}
54. Rd4 {[%clk 0:00:03.2]} 54... h5 {[%clk 0:00:07]} 55. Ke2 {[%clk 0:00:02.2]}
55... h4 {[%clk 0:00:07.5]} 56. Kf1 {[%clk 0:00:03]} 56... a5 {[%clk 0:00:07.9]}
57. Kg1 {[%clk 0:00:03.3]} 57... a4 {[%clk 0:00:08.3]} 58. Rxa4 {[%clk
0:00:01.1]} 58... Rxd6 {[%clk 0:00:08.5]} 59. Ra1 {[%clk 0:00:02]} 59... Rd2
{[%clk 0:00:08.5]} 60. Kh1 {[%clk 0:00:02.5]} 60... Rf2 {[%clk 0:00:07.9]} 61.
Rd1 {[%clk 0:00:02.9]} 61... Kg4 {[%clk 0:00:07.3]} 62. Rd4+ {[%clk 0:00:02.9]}
62... Rf4 {[%clk 0:00:07.6]} 63. Rd1 {[%clk 0:00:03]} 63... h3 {[%clk
0:00:08.1]} 64. Ra1 {[%clk 0:00:03.5]} 64... Re4 {[%clk 0:00:07.7]} 65. Rb1
{[%clk 0:00:03.8]} 65... Kf3 {[%clk 0:00:08.1]} 66. Kg1 {[%clk 0:00:04.2]} 66...
Ke3 {[%clk 0:00:07.7]} 67. Rb3+ {[%clk 0:00:04]} 67... Kf4 {[%clk 0:00:08.1]}
68. Rb1 {[%clk 0:00:04.6]} 68... Rd4 {[%clk 0:00:08.4]} 69. Kf1 {[%clk
0:00:04.3]} 69... Ke3 {[%clk 0:00:08.8]} 70. Re1+ {[%clk 0:00:03.2]} 70... Kf3
{[%clk 0:00:09]} 71. Rb1 {[%clk 0:00:03.4]} 71... Rd3 {[%clk 0:00:09.5]} 72. Ra1
{[%clk 0:00:03.7]} 72... h2 {[%clk 0:00:09.4]} 0-1

[Event "Early-Titled-Tuesday-Blitz-April-02-2024"]
[Site "Chess.com"]
[Date "2024.04.02"]
[Round "9"]
[White "rionelG"]
[Black "kai_nov"]
[Result "1-0"]
[WhiteElo "2212"]
[BlackElo "2314"]
[TimeControl "180+1"]
[EndTime "9:46:45 PDT"]
[Termination "rionelG won by checkmate"]

1. e4 {[%clk 0:03:00.9]} 1... c5 {[%clk 0:02:57.8]} 2. Nf3 {[%clk 0:03:01.3]}
2... Nc6 {[%clk 0:02:56.2]} 3. d4 {[%clk 0:03:01.2]} 3... cxd4 {[%clk
0:02:50.8]} 4. Nxd4 {[%clk 0:03:02.1]} 4... e5 {[%clk 0:02:51.2]} 5. Nxc6 {[%clk
0:02:59.5]} 5... bxc6 {[%clk 0:02:50.5]} 6. g3 {[%clk 0:03:00.1]} 6... Nf6
{[%clk 0:02:48.7]} 7. Bg2 {[%clk 0:03:00.1]} 7... Bb4+ {[%clk 0:02:47.5]} 8. Bd2
{[%clk 0:02:57.1]} 8... Bxd2+ {[%clk 0:02:46.1]} 9. Qxd2 {[%clk 0:02:50.7]} 9...
O-O {[%clk 0:02:40.8]} 10. O-O {[%clk 0:02:50.6]} 10... Rb8 {[%clk 0:02:31.1]}
11. c4 {[%clk 0:02:50.3]} 11... Qb6 {[%clk 0:02:20.3]} 12. b3 {[%clk 0:02:49.1]}
12... a5 {[%clk 0:02:18.5]} 13. Nc3 {[%clk 0:02:48.4]} 13... Ba6 {[%clk
0:02:16.7]} 14. Rfd1 {[%clk 0:02:46.3]} 14... Rfd8 {[%clk 0:02:15.6]} 15. Na4
{[%clk 0:02:42.8]} 15... Qc7 {[%clk 0:02:02.6]} 16. Qd6 {[%clk 0:02:42.6]} 16...
Qxd6 {[%clk 0:01:59.9]} 17. Rxd6 {[%clk 0:02:43.5]} 17... Rb4 {[%clk 0:01:55.7]}
18. Nc5 {[%clk 0:02:36.2]} 18... Bc8 {[%clk 0:01:38.5]} 19. Rad1 {[%clk
0:02:35.6]} 19... Rf8 {[%clk 0:01:30.6]} 20. f3 {[%clk 0:02:19.6]} 20... Ne8
{[%clk 0:01:27.5]} 21. R6d2 {[%clk 0:02:18.5]} 21... d6 {[%clk 0:01:23.5]} 22.
Na4 {[%clk 0:02:07.8]} 22... Be6 {[%clk 0:01:20.1]} 23. f4 {[%clk 0:02:00.9]}
23... Bxc4 {[%clk 0:01:05.1]} 24. fxe5 {[%clk 0:02:00.5]} 24... dxe5 {[%clk
0:01:02]} 25. Rc1 {[%clk 0:01:59.9]} 25... Bb5 {[%clk 0:00:50.6]} 26. Nc5 {[%clk
0:01:59.7]} 26... Nf6 {[%clk 0:00:45.3]} 27. Rcd1 {[%clk 0:01:49.3]} 27... Re8
{[%clk 0:00:18.3]} 28. a3 {[%clk 0:01:45.8]} 28... Rd4 {[%clk 0:00:18.2]} 29.
Rxd4 {[%clk 0:01:46.3]} 29... exd4 {[%clk 0:00:18.2]} 30. Rxd4 {[%clk
0:01:47.1]} 30... h6 {[%clk 0:00:17.7]} 31. h3 {[%clk 0:01:40.3]} 31... Re5
{[%clk 0:00:16.2]} 32. Nd7 {[%clk 0:01:29.5]} 32... Nxd7 {[%clk 0:00:16]} 33.
Rxd7 {[%clk 0:01:30.2]} 33... c5 {[%clk 0:00:15.8]} 34. Rd5 {[%clk 0:01:05.4]}
34... Rxd5 {[%clk 0:00:15.6]} 35. exd5 {[%clk 0:01:06.3]} 35... Kf8 {[%clk
0:00:15]} 36. Kf2 {[%clk 0:01:04.6]} 36... Ke7 {[%clk 0:00:14.8]} 37. Ke3 {[%clk
0:01:04.4]} 37... Kd6 {[%clk 0:00:15.1]} 38. Bf3 {[%clk 0:00:44.9]} 38... a4
{[%clk 0:00:15.2]} 39. bxa4 {[%clk 0:00:41.3]} 39... Bxa4 {[%clk 0:00:15.3]} 40.
Kd3 {[%clk 0:00:30.2]} 40... Bb5+ {[%clk 0:00:14.2]} 41. Kc3 {[%clk 0:00:30.1]}
41... Ba4 {[%clk 0:00:13.2]} 42. Bh1 {[%clk 0:00:28]} 42... Bd7 {[%clk
0:00:12.8]} 43. Bg2 {[%clk 0:00:27.6]} 43... g5 {[%clk 0:00:12.9]} 44. Kc4
{[%clk 0:00:27.5]} 44... f5 {[%clk 0:00:12.9]} 45. Bf3 {[%clk 0:00:23.3]} 45...
f4 {[%clk 0:00:12.8]} 46. gxf4 {[%clk 0:00:22.1]} 46... gxf4 {[%clk 0:00:13.1]}
47. h4 {[%clk 0:00:22.6]} 47... Be8 {[%clk 0:00:08.8]} 48. Bg2 {[%clk
0:00:19.8]} 48... Bd7 {[%clk 0:00:08.6]} 49. Bf3 {[%clk 0:00:20]} 49... Be8
{[%clk 0:00:08.9]} 50. Bg4 {[%clk 0:00:16]} 50... h5 {[%clk 0:00:08]} 51. Bf3
{[%clk 0:00:16.2]} 51... Bf7 {[%clk 0:00:05.2]} 52. a4 {[%clk 0:00:15.1]} 52...
Be8 {[%clk 0:00:05.6]} 53. a5 {[%clk 0:00:15.1]} 53... Bd7 {[%clk 0:00:05.1]}
54. Bxh5 {[%clk 0:00:15]} 54... Bc8 {[%clk 0:00:05.2]} 55. Bf3 {[%clk
0:00:13.9]} 55... Ba6+ {[%clk 0:00:05.5]} 56. Kc3 {[%clk 0:00:14.5]} 56... Ke5
{[%clk 0:00:05.8]} 57. h5 {[%clk 0:00:13.9]} 57... Kf5 {[%clk 0:00:04.6]} 58. h6
{[%clk 0:00:11.2]} 58... Kg6 {[%clk 0:00:04.9]} 59. d6 {[%clk 0:00:11.8]} 59...
Bb5 {[%clk 0:00:03.8]} 60. a6 {[%clk 0:00:09.3]} 60... Bxa6 {[%clk 0:00:03.9]}
61. d7 {[%clk 0:00:09.7]} 61... Kxh6 {[%clk 0:00:04.3]} 62. d8=Q {[%clk
0:00:10.1]} 62... Kg7 {[%clk 0:00:03.6]} 63. Qc7+ {[%clk 0:00:09.5]} 63... Kf6
{[%clk 0:00:04]} 64. Qc6+ {[%clk 0:00:09.3]} 64... Kg5 {[%clk 0:00:04.7]} 65.
Qxa6 {[%clk 0:00:09.8]} 65... Kh4 {[%clk 0:00:05.5]} 66. Qg6 {[%clk 0:00:07.9]}
66... Kh3 {[%clk 0:00:05.4]} 67. Qg2+ {[%clk 0:00:08.1]} 67... Kh4 {[%clk
0:00:05.3]} 68. Qg4# {[%clk 0:00:09]} 1-0

[Event "Early-Titled-Tuesday-Blitz-April-02-2024"]
[Site "Chess.com"]
[Date "2024.04.02"]
[Round "9"]
[White "ValentinDragnev"]
[Black "sathvikadiga"]
[Result "0-1"]
[WhiteElo "2714"]
[BlackElo "2577"]
[TimeControl "180+1"]
[EndTime "9:46:49 PDT"]
[Termination "sathvikadiga won on time"]

1. d4 {[%clk 0:02:58]} 1... Nf6 {[%clk 0:02:59.8]} 2. c4 {[%clk 0:02:57.6]} 2...
g6 {[%clk 0:03:00.2]} 3. Nf3 {[%clk 0:02:56.9]} 3... Bg7 {[%clk 0:03:00.5]} 4.
g3 {[%clk 0:02:57.2]} 4... d6 {[%clk 0:03:00.9]} 5. Bg2 {[%clk 0:02:57.9]} 5...
O-O {[%clk 0:03:01.6]} 6. O-O {[%clk 0:02:58.7]} 6... Nc6 {[%clk 0:03:02.2]} 7.
Nc3 {[%clk 0:02:59.4]} 7... e5 {[%clk 0:03:02.7]} 8. dxe5 {[%clk 0:02:57.1]}
8... dxe5 {[%clk 0:03:03.6]} 9. Qxd8 {[%clk 0:02:55.3]} 9... Rxd8 {[%clk
0:03:04.5]} 10. Bg5 {[%clk 0:02:56]} 10... Be6 {[%clk 0:03:02.7]} 11. b3 {[%clk
0:02:47.3]} 11... h6 {[%clk 0:03:01.9]} 12. Bxf6 {[%clk 0:02:47.6]} 12... Bxf6
{[%clk 0:03:02.8]} 13. Rac1 {[%clk 0:02:42.4]} 13... Bg7 {[%clk 0:03:01]} 14.
Rfd1 {[%clk 0:02:31.3]} 14... f5 {[%clk 0:02:59.8]} 15. Nd5 {[%clk 0:02:27.8]}
15... Rac8 {[%clk 0:02:58]} 16. e3 {[%clk 0:02:20.8]} 16... Kf7 {[%clk 0:02:56]}
17. a3 {[%clk 0:02:19]} 17... e4 {[%clk 0:02:40.6]} 18. Ne1 {[%clk 0:02:18.7]}
18... g5 {[%clk 0:02:34.2]} 19. Rd2 {[%clk 0:02:12.2]} 19... Ne7 {[%clk
0:02:26.7]} 20. Rcd1 {[%clk 0:02:09.9]} 20... c6 {[%clk 0:02:19.6]} 21. Nxe7
{[%clk 0:02:04.7]} 21... Kxe7 {[%clk 0:02:20.5]} 22. f3 {[%clk 0:01:51.8]} 22...
Rxd2 {[%clk 0:02:13.7]} 23. Rxd2 {[%clk 0:01:52.7]} 23... Bc3 {[%clk 0:02:13.7]}
24. Rd1 {[%clk 0:01:53.4]} 24... Rd8 {[%clk 0:02:13.5]} 25. Rxd8 {[%clk
0:01:51.6]} 25... Kxd8 {[%clk 0:02:14.4]} 26. Nc2 {[%clk 0:01:49.8]} 26... exf3
{[%clk 0:02:14.9]} 27. Bxf3 {[%clk 0:01:50.7]} 27... Kc7 {[%clk 0:02:05.7]} 28.
Kf2 {[%clk 0:01:50.9]} 28... b5 {[%clk 0:01:57.2]} 29. Be2 {[%clk 0:01:43.1]}
29... a6 {[%clk 0:01:54.1]} 30. Nd4 {[%clk 0:01:33.6]} 30... Bd7 {[%clk
0:01:54.4]} 31. cxb5 {[%clk 0:01:26.8]} 31... axb5 {[%clk 0:01:52.4]} 32. Bd3
{[%clk 0:01:22.7]} 32... f4 {[%clk 0:01:50.5]} 33. gxf4 {[%clk 0:01:23.6]} 33...
gxf4 {[%clk 0:01:50.5]} 34. Nc2 {[%clk 0:01:07.6]} 34... fxe3+ {[%clk
0:01:47.5]} 35. Kxe3 {[%clk 0:01:08.5]} 35... Kb6 {[%clk 0:01:44.7]} 36. b4
{[%clk 0:00:54.9]} 36... c5 {[%clk 0:01:20.4]} 37. Kf4 {[%clk 0:00:44.3]} 37...
c4 {[%clk 0:01:12.3]} 38. Bf5 {[%clk 0:00:42.8]} 38... Bd2+ {[%clk 0:01:10.8]}
39. Ke5 {[%clk 0:00:33.7]} 39... Bc6 {[%clk 0:01:04.8]} 40. Be4 {[%clk
0:00:32.6]} 40... Be8 {[%clk 0:01:00.2]} 41. h3 {[%clk 0:00:28.6]} 41... Bh5
{[%clk 0:00:58.2]} 42. Bf5 {[%clk 0:00:21.5]} 42... Bd1 {[%clk 0:00:56.9]} 43.
Kd4 {[%clk 0:00:18.8]} 43... h5 {[%clk 0:00:25.3]} 44. Bg6 {[%clk 0:00:16.5]}
44... h4 {[%clk 0:00:24.3]} 45. Bf5 {[%clk 0:00:16.9]} 45... Bc1 {[%clk
0:00:22.5]} 46. Kd5 {[%clk 0:00:14]} 46... Bb2 {[%clk 0:00:12.4]} 47. Be4 {[%clk
0:00:12.7]} 47... Be2 {[%clk 0:00:11.2]} 48. Bf5 {[%clk 0:00:08.3]} 48... Bf1
{[%clk 0:00:10.6]} 49. Kd6 {[%clk 0:00:07.2]} 49... Bd3 {[%clk 0:00:08.2]} 50.
Ke6 {[%clk 0:00:07.7]} 50... Bxc2 {[%clk 0:00:06.9]} 51. Bxc2 {[%clk 0:00:07.6]}
51... Bxa3 {[%clk 0:00:07.6]} 52. Kd5 {[%clk 0:00:06.4]} 52... Bxb4 {[%clk
0:00:08.1]} 53. Bd1 {[%clk 0:00:07.3]} 53... Bd2 {[%clk 0:00:06.8]} 54. Be2
{[%clk 0:00:07.2]} 54... c3 {[%clk 0:00:07.3]} 55. Bd1 {[%clk 0:00:06.8]} 55...
Ka5 {[%clk 0:00:06.8]} 56. Kc5 {[%clk 0:00:05.7]} 56... Be3+ {[%clk 0:00:04.9]}
57. Kd5 {[%clk 0:00:06.2]} 57... Kb4 {[%clk 0:00:05.4]} 58. Ke4 {[%clk
0:00:06.8]} 58... Bd2 {[%clk 0:00:06]} 59. Kd3 {[%clk 0:00:06.6]} 59... Ka3
{[%clk 0:00:06.4]} 60. Kd4 {[%clk 0:00:04.7]} 60... Kb2 {[%clk 0:00:05.3]} 61.
Kd3 {[%clk 0:00:04]} 61... b4 {[%clk 0:00:05.8]} 62. Ba4 {[%clk 0:00:02.9]}
62... b3 {[%clk 0:00:06.1]} 0-1

[Event "Early-Titled-Tuesday-Blitz-April-02-2024"]
[Site "Chess.com"]
[Date "2024.04.02"]
[Round "9"]
[White "GM_Levan_Pantsulaia"]
[Black "MITerryble"]
[Result "1-0"]
[WhiteElo "2916"]
[BlackElo "3005"]
[TimeControl "180+1"]
[EndTime "9:46:54 PDT"]
[Termination "GM_Levan_Pantsulaia won on time"]

1. Nf3 {[%clk 0:03:00.9]} 1... g6 {[%clk 0:02:58.1]} 2. g3 {[%clk 0:02:58.3]}
2... Bg7 {[%clk 0:02:58.5]} 3. Bg2 {[%clk 0:02:59]} 3... e5 {[%clk 0:02:58.9]}
4. O-O {[%clk 0:02:58.8]} 4... Nc6 {[%clk 0:02:59.4]} 5. c4 {[%clk 0:02:58.7]}
5... d6 {[%clk 0:02:59.6]} 6. Nc3 {[%clk 0:02:59.4]} 6... Nge7 {[%clk
0:02:59.7]} 7. Rb1 {[%clk 0:02:58.8]} 7... O-O {[%clk 0:02:57.4]} 8. b4 {[%clk
0:02:58.4]} 8... Nd4 {[%clk 0:02:53.3]} 9. d3 {[%clk 0:02:57.7]} 9... Ne6 {[%clk
0:02:51.4]} 10. a4 {[%clk 0:02:56.3]} 10... h6 {[%clk 0:02:50.7]} 11. e4 {[%clk
0:02:46.5]} 11... f5 {[%clk 0:02:50.8]} 12. exf5 {[%clk 0:02:46.4]} 12... Nxf5
{[%clk 0:02:47.7]} 13. a5 {[%clk 0:02:39.6]} 13... Rb8 {[%clk 0:02:47.8]} 14.
Re1 {[%clk 0:02:29.6]} 14... g5 {[%clk 0:02:43.2]} 15. Be3 {[%clk 0:02:26.8]}
15... Nxe3 {[%clk 0:02:34.5]} 16. fxe3 {[%clk 0:02:27.4]} 16... c6 {[%clk
0:02:32.3]} 17. Nd2 {[%clk 0:02:25.5]} 17... Bd7 {[%clk 0:02:29.3]} 18. Rf1
{[%clk 0:02:17.2]} 18... Qe7 {[%clk 0:02:26]} 19. Rxf8+ {[%clk 0:02:13.7]} 19...
Rxf8 {[%clk 0:02:23.4]} 20. a6 {[%clk 0:02:13.4]} 20... bxa6 {[%clk 0:02:22.2]}
21. Qa4 {[%clk 0:02:08.1]} 21... Nd8 {[%clk 0:02:01.3]} 22. Qxa6 {[%clk
0:02:06.4]} 22... Bf5 {[%clk 0:02:01.9]} 23. Nde4 {[%clk 0:02:04.9]} 23... g4
{[%clk 0:01:26.4]} 24. b5 {[%clk 0:02:04.5]} 24... Bxe4 {[%clk 0:01:18.2]} 25.
Nxe4 {[%clk 0:01:37.7]} 25... d5 {[%clk 0:01:18.6]} 26. cxd5 {[%clk 0:01:37]}
26... cxd5 {[%clk 0:01:19.5]} 27. Qa2 {[%clk 0:01:36.7]} 27... Ne6 {[%clk
0:01:19.8]} 28. Qxd5 {[%clk 0:01:35.7]} 28... Rd8 {[%clk 0:01:19.7]} 29. Qc4
{[%clk 0:01:34.5]} 29... Kh8 {[%clk 0:01:17.8]} 30. Rf1 {[%clk 0:01:32]} 30...
Ng5 {[%clk 0:01:15.5]} 31. Nc3 {[%clk 0:01:18.9]} 31... Qd7 {[%clk 0:01:04.2]}
32. Nd5 {[%clk 0:01:16.8]} 32... Rc8 {[%clk 0:01:04.4]} 33. Qb4 {[%clk
0:01:13.5]} 33... Nf3+ {[%clk 0:00:55.4]} 34. Bxf3 {[%clk 0:01:12.1]} 34... gxf3
{[%clk 0:00:56.3]} 35. Qe4 {[%clk 0:01:12.1]} 35... Rd8 {[%clk 0:00:51.3]} 36.
Nb4 {[%clk 0:01:09.3]} 36... Qxb5 {[%clk 0:00:51.2]} 37. Rxf3 {[%clk 0:01:04.9]}
37... a5 {[%clk 0:00:50.4]} 38. Nc6 {[%clk 0:01:03.5]} 38... Qxd3 {[%clk
0:00:47.2]} 39. Qxd3 {[%clk 0:00:52.5]} 39... Rxd3 {[%clk 0:00:48.1]} 40. Nxa5
{[%clk 0:00:51]} 40... e4 {[%clk 0:00:48.7]} 41. Rf4 {[%clk 0:00:49.4]} 41...
Rxe3 {[%clk 0:00:49.1]} 42. Nc4 {[%clk 0:00:49.6]} 42... Re2 {[%clk 0:00:47.6]}
43. h4 {[%clk 0:00:40.5]} 43... Bc3 {[%clk 0:00:22.6]} 44. Kf1 {[%clk
0:00:37.8]} 44... Re1+ {[%clk 0:00:21.4]} 45. Kf2 {[%clk 0:00:38.2]} 45... Kh7
{[%clk 0:00:19]} 46. Ne3 {[%clk 0:00:33.4]} 46... Ra1 {[%clk 0:00:09.2]} 47.
Rxe4 {[%clk 0:00:33.2]} 47... Ra7 {[%clk 0:00:09.8]} 48. Kf3 {[%clk 0:00:32.1]}
48... Rf7+ {[%clk 0:00:09.8]} 49. Kg2 {[%clk 0:00:32.5]} 49... Bd2 {[%clk
0:00:06.4]} 50. Nc4 {[%clk 0:00:31.1]} 50... Bc3 {[%clk 0:00:06.6]} 51. Nd6
{[%clk 0:00:31.3]} 51... Rd7 {[%clk 0:00:04.4]} 52. Re6 {[%clk 0:00:30.3]} 52...
Bg7 {[%clk 0:00:03.4]} 53. Nf5 {[%clk 0:00:30.6]} 53... Bf8 {[%clk 0:00:04]} 54.
Kh3 {[%clk 0:00:30.6]} 54... Rf7 {[%clk 0:00:03]} 55. g4 {[%clk 0:00:30.9]}
55... Ra7 {[%clk 0:00:03.4]} 56. h5 {[%clk 0:00:28.3]} 56... Ra3+ {[%clk
0:00:03.4]} 57. Kh4 {[%clk 0:00:27.1]} 57... Ra7 {[%clk 0:00:03.5]} 58. Rf6
{[%clk 0:00:26.7]} 58... Bg7 {[%clk 0:00:03.7]} 59. Rg6 {[%clk 0:00:25.8]} 59...
Bf8 {[%clk 0:00:04.1]} 60. Kg3 {[%clk 0:00:26.2]} 60... Ra3+ {[%clk 0:00:04]}
61. Kf4 {[%clk 0:00:26.7]} 61... Ra5 {[%clk 0:00:03.9]} 62. Ke4 {[%clk 0:00:27]}
62... Rb5 {[%clk 0:00:03.4]} 63. Rf6 {[%clk 0:00:27.5]} 63... Rb8 {[%clk
0:00:03.5]} 64. Kd5 {[%clk 0:00:24.3]} 64... Rd8+ {[%clk 0:00:03.4]} 65. Ke6
{[%clk 0:00:24.5]} 65... Ra8 {[%clk 0:00:04.3]} 66. Kf7 {[%clk 0:00:23.6]} 66...
Rb8 {[%clk 0:00:02.8]} 67. Re6 {[%clk 0:00:18.7]} 67... Ra8 {[%clk 0:00:03]} 68.
Rc6 {[%clk 0:00:17.4]} 68... Rb8 {[%clk 0:00:03.2]} 69. Rc7 {[%clk 0:00:17.8]}
69... Ra8 {[%clk 0:00:03.1]} 70. Kf6+ {[%clk 0:00:17]} 70... Kg8 {[%clk
0:00:03.6]} 71. Rc6 {[%clk 0:00:17.2]} 71... Ra7 {[%clk 0:00:03.2]} 72. Kg6
{[%clk 0:00:17.1]} 72... Kh8 {[%clk 0:00:01.5]} 73. Nxh6 {[%clk 0:00:16]} 73...
Rg7+ {[%clk 0:00:01.5]} 74. Kf5 {[%clk 0:00:16.1]} 74... Ra7 {[%clk 0:00:01.6]}
75. g5 {[%clk 0:00:15.9]} 75... Ra5+ {[%clk 0:00:01.5]} 76. Kg6 {[%clk
0:00:16.2]} 76... Ra7 {[%clk 0:00:02.4]} 77. Nf7+ {[%clk 0:00:15.3]} 77... Kg8
{[%clk 0:00:02.1]} 78. Ne5 {[%clk 0:00:16]} 78... Ra5 {[%clk 0:00:01.6]} 79. Re6
{[%clk 0:00:15.6]} 1-0